bitfinex/quotes_ETHUSD_20250813
["timestamp","ask_amount","ask_price","bid_price","bid_amount"]
[1755116956716,15.06861,4708.3,4708.2,8.428]
[1755116956918,14.61591,4708.3,4708.2,8.428]
[1755116957846,14.61591,4708.3,4708.2,5.092]
[1755116958018,14.61591,4708.3,4708.2,8.427]
[1755116963028,14.61591,4708.3,4708.2,5.092]
[1755116963230,14.61591,4708.3,4708.2,8.427]
[1755116964157,15.052,4708.3,4708.2,8.427]
[1755116967371,15.052,4708.3,4708.2,8.8906]
[1755116967543,0.002,4708.3,4708.2,9.3423]
[1755116971951,0.002,4708.3,4708.2,5.5556]
[1755116972152,0.002,4708.3,4708.2,8.426]
[1755116972562,0.002,4708.3,4708.2,8.8659]
[1755116972758,0.002,4708.3,4708.2,9.3492]
[1755116974644,0.002,4708.3,4708.2,8.8659]
[1755116974841,0.002,4708.3,4708.2,5.092]
[1755116975042,3.02144,4708.3,4708.2,8.425]
[1755116975272,1.5028,4708.3,4708.2,8.425]
[1755116975472,0.55,4708.2,4708.0,0.001]
[1755116975675,1.5008,4708.2,4708.1,3.333]
[1755116977868,0.55,4708.2,4708.1,3.333]
[1755116981271,14.502,4708.3,4708.1,4.2562]
[1755116981477,0.002,4708.3,4708.2,11.70881406]
[1755116982647,0.002,4708.3,4708.2,14.11861406]
[1755116983852,0.002,4708.3,4708.2,15.04181406]
[1755116985071,0.1084,4708.3,4708.2,15.04181406]
[1755116990091,0.1084,4708.3,4708.2,20.13381406]
[1755116990957,0.1084,4708.3,4708.2,19.65051406]
[1755116991786,0.1084,4708.3,4708.2,20.13381406]
[1755116995389,0.1084,4708.3,4708.2,19.65051406]
[1755116995601,0.1084,4708.3,4708.2,16.31751406]
[1755116995786,0.1084,4708.3,4708.2,19.20761406]
[1755116996689,0.1084,4708.3,4708.2,19.64751406]
[1755116996896,0.1084,4708.3,4708.2,20.13081406]
[1755116997805,0.1084,4708.3,4708.2,19.20761406]
[1755116998006,0.1084,4708.3,4708.2,8.422]
[1755117001178,0.1084,4708.3,4708.2,22.20761406]
[1755117001438,0.002,4708.3,4708.2,25.12770547]
[1755117001612,0.002,4708.3,4708.2,21.90610547]
[1755117001814,0.002,4708.3,4708.2,25.23510547]
[1755117002327,0.002,4708.3,4708.2,23.11491406]
[1755117004233,0.002,4708.9,4708.3,3.25640103]
[1755117004440,0.456,4711.1,4708.8,10.78561406]
[1755117004730,0.4438,4711.2,4708.9,6.58440103]
[1755117004948,14.5,4710.3,4709.3,13.78561406]
[1755117005137,14.5,4710.3,4709.4,3.0]
[1755117005307,0.02,4711.4,4710.2,10.78561406]
[1755117005503,0.02,4711.4,4710.3,6.328]
[1755117005709,14.5,4711.1,4710.3,7.2363]
[1755117005945,14.5,4711.1,4710.3,8.11889591]
[1755117006429,0.02,4711.4,4710.4,3.0]
[1755117006634,0.02,4711.4,4711.0,10.78561406]
[1755117006838,0.02,4711.4,4711.1,3.328]
[1755117007048,0.02,4711.4,4711.1,3.0]
[1755117007332,1.4498,4711.3,4711.2,3.327]
[1755117007532,1.59678,4711.3,4711.2,3.327]
[1755117007911,0.55,4711.2,4710.5,5.091]
[1755117008116,1.4498,4711.2,4710.5,5.091]
[1755117008311,0.14698,4711.3,4710.5,5.091]
[1755117008510,0.55,4711.0,4710.5,5.091]
[1755117008741,0.02,4711.4,4710.5,5.091]
[1755117008924,0.55,4710.8,4710.5,5.091]
[1755117009124,0.55,4710.8,4708.1,0.021]
[1755117009125,0.55,4710.6,4710.0,5.091]
[1755117009322,0.55,4710.4,4710.0,5.091]
[1755117009532,0.55,4710.2,4710.0,5.091]
[1755117009720,0.02,4711.4,4710.1,10.78561406]
[1755117009942,0.55,4710.9,4710.1,10.78561406]
[1755117010348,0.55,4710.9,4710.2,3.327]
[1755117010548,0.55,4710.7,4710.0,5.091]
[1755117010749,0.55,4710.7,4710.1,3.327]
[1755117011051,0.8998,4710.6,4710.1,3.327]
[1755117011251,0.6564,4710.2,4710.1,3.327]
[1755117011554,1.5562,4710.2,4710.1,3.327]
[1755117011737,0.55,4710.1,4710.0,5.091]
[1755117011935,1.4498,4710.1,4710.0,8.418]
[1755117012144,0.1064,4710.2,4710.0,8.418]
[1755117013556,0.55,4710.1,4710.0,8.418]
[1755117014831,0.55,4710.1,4710.0,19.20361406]
[1755117015027,0.55,4710.1,4710.0,19.63641406]
[1755117016655,0.55,4710.1,4710.0,8.8508]
[1755117017281,0.55,4710.1,4710.0,8.418]
[1755117017681,0.55,4710.1,4710.0,8.8508]
[1755117018687,0.55,4710.1,4710.0,8.418]
[1755117018885,0.55,4710.1,4710.0,9.3263]
[1755117019258,0.55,4710.1,4710.0,22.12310547]
[1755117019259,0.1064,4710.1,4710.0,22.12310547]
[1755117019463,0.1064,4710.3,4710.0,22.12310547]
[1755117019676,0.1064,4710.3,4710.1,0.9083]
[1755117019858,0.1064,4710.3,4710.0,7.10219141]
[1755117020080,0.1064,4710.3,4710.1,3.325]
[1755117020320,0.55,4710.2,4710.0,5.091]
[1755117020477,0.55,4710.2,4710.1,3.325]
[1755117021105,0.55,4710.2,4710.1,0.9083]
[1755117021308,0.55,4710.2,4710.1,4.2333]
[1755117021482,0.55,4710.2,4710.0,5.091]
[1755117021808,0.55,4710.2,4710.1,3.325]
[1755117022505,0.55,4710.2,4710.1,4.2333]
[1755117022681,15.05,4710.2,4710.1,4.2333]
[1755117023081,15.05,4710.2,4710.1,15.01891406]
[1755117023283,0.55,4710.2,4710.1,15.01891406]
[1755117024395,0.55,4710.2,4710.1,14.54341406]
[1755117024600,0.1064,4710.3,4710.1,14.54341406]
[1755117024601,0.1064,4710.3,4710.1,16.55440547]
[1755117024800,0.1064,4710.3,4710.2,0.9083]
[1755117025004,0.002,4710.7,4710.2,0.9083]
[1755117025005,0.1064,4710.4,4710.2,0.9083]
[1755117025185,0.1064,4710.4,4710.3,4.2323]
[1755117025911,0.1064,4710.4,4710.3,7.2323]
[1755117026119,0.002,4710.7,4710.4,3.0]
[1755117026325,0.002,4710.7,4710.6,10.78561406]
[1755117026814,0.002,4710.7,4710.6,14.69391406]
[1755117027024,0.002,4711.6,4710.7,3.0]
[1755117027185,0.002,4711.6,4711.3,0.1064]
[1755117027382,0.002,4711.6,4711.3,4.81960141]
[1755117027614,0.002,4711.6,4711.3,8.72790141]
[1755117028760,0.002,4711.6,4711.3,32.52803024]
[1755117034895,0.002,4711.6,4711.3,29.20403024]
[1755117035107,0.002,4711.6,4711.3,32.52603024]
[1755117036036,0.4653,4713.3,4711.3,32.52603024]
[1755117036037,0.55,4713.3,4711.4,3.0]
[1755117036236,0.1064,4712.6,4712.2,23.80012883]
[1755117036441,0.1064,4712.6,4712.3,8.43222105]
[1755117036616,0.1064,4712.6,4712.3,8.411]
[1755117036822,0.1064,4712.6,4712.3,9.3345]
[1755117037220,0.55,4713.1,4712.3,12.3345]
[1755117037440,14.5,4713.2,4712.3,12.3345]
[1755117037441,14.5,4713.2,4712.3,10.0744]
[1755117037738,14.5,4713.2,4713.0,23.80012883]
[1755117037933,14.5,4713.2,4713.1,3.321]
[1755117038314,0.1064,4713.5,4713.1,3.321]
[1755117038518,0.57,4713.4,4712.9,0.1064]
[1755117038731,0.57,4713.4,4713.0,3.321]
[1755117038732,1.5222,4713.4,4713.0,3.321]
[1755117039042,0.55,4713.2,4713.1,3.321]
[1755117039218,1.65442,4713.2,4713.1,3.321]
[1755117039416,1.76082,4713.2,4713.1,3.321]
[1755117040538,0.55,4713.1,4712.3,5.089]
[1755117040708,0.1064,4712.7,4712.4,3.32]
[1755117041714,14.5,4712.6,4712.4,3.32]
[1755117044352,0.1064,4712.7,4712.4,3.32]
[1755117044524,0.1064,4712.7,4712.4,3.791]
[1755117044722,14.6064,4712.7,4712.5,0.471]
[1755117044960,0.1064,4712.7,4712.6,28.04362883]
[1755117045238,0.1064,4713.0,4712.6,28.04262883]
[1755117045563,0.1064,4713.0,4712.7,0.471]
[1755117045765,0.1064,4713.0,4712.8,3.319]
[1755117045965,0.1064,4713.0,4712.9,3.319]
[1755117046305,0.5933,4713.0,4712.9,3.319]
[1755117046468,0.1064,4713.0,4712.0,26.80012883]
[1755117046615,0.1064,4713.0,4710.2,0.16048582]
[1755117046616,3.55,4712.9,4711.2,5.087]
[1755117046822,0.55,4712.7,4711.3,3.319]
[1755117047046,0.55,4711.8,4711.3,3.319]
[1755117047353,14.5,4711.9,4711.3,3.319]
[1755117047572,0.55,4713.1,4711.4,3.319]
[1755117047837,23.80012883,4714.0,4711.4,3.319]
[1755117047838,0.4869,4712.2,4711.4,3.319]
[1755117048045,15.05,4712.1,4711.4,3.319]
[1755117050048,15.05,4712.1,4711.4,14.08967929]
[1755117050238,0.6493,4712.9,4711.4,14.08967929]
[1755117050544,0.55,4712.4,4711.4,3.319]
[1755117050715,14.5,4712.3,4711.4,3.319]
[1755117051121,0.55,4712.2,4711.5,3.471]
[1755117051318,0.6493,4713.0,4711.5,3.471]
[1755117051743,14.5,4712.9,4711.5,3.471]
[1755117051949,0.55,4712.8,4711.5,3.471]
[1755117052452,0.55,4712.9,4711.5,3.471]
[1755117052655,14.5,4712.7,4711.5,3.90893573]
[1755117054835,0.02,4713.4,4711.9,3.0]
[1755117055035,0.02,4713.4,4712.1,3.0]
[1755117055326,15.05,4713.3,4712.2,3.318]
[1755117055533,15.05,4713.3,4712.3,3.318]
[1755117055727,15.05,4713.3,4712.4,0.0212206]
[1755117055927,15.05,4713.3,4712.3,3.318]
[1755117056639,0.1064,4712.6,4712.3,3.318]
[1755117056957,0.1064,4712.6,4712.4,0.471]
[1755117057332,15.05,4713.3,4712.4,0.471]
[1755117057333,14.5,4713.3,4712.5,0.9235]
[1755117057531,0.1064,4713.0,4712.6,3.318]
[1755117058836,14.5,4712.9,4712.6,3.318]
[1755117059037,14.5,4712.9,4712.7,0.4569]
[1755117060676,14.5,4712.9,4712.6,3.318]
[1755117062060,0.55,4712.8,4712.6,3.318]
[1755117062263,0.6564,4712.7,4712.6,3.318]
[1755117062663,0.6564,4712.7,4712.6,3.317]
[1755117063577,0.6564,4712.7,4712.6,8.404]
[1755117065170,1.579,4712.7,4712.6,8.404]
[1755117065373,0.8143,4712.7,4712.6,8.404]
[1755117065673,0.6564,4712.7,4712.6,8.404]
[1755117066369,1.579,4712.7,4712.6,8.404]
[1755117066743,1.1513,4712.7,4712.6,8.403]
[1755117066943,0.6564,4712.7,4712.6,8.403]
[1755117069683,0.1064,4712.8,4712.6,8.403]
[1755117070552,0.1064,4712.8,4712.6,8.8599]
[1755117070974,0.1064,4712.8,4712.7,0.4569]
[1755117071158,0.1064,4712.8,4712.7,0.9459]
[1755117072252,0.6564,4712.8,4712.7,4.2619]
[1755117072648,0.6564,4712.8,4712.7,3.7729]
[1755117072857,0.6564,4712.8,4712.7,3.316]
[1755117073359,0.6564,4712.8,4712.7,3.315]
[1755117073898,0.6564,4712.8,4712.7,3.7719]
[1755117074663,0.6564,4712.8,4712.7,3.315]
[1755117076277,0.6564,4712.8,4712.7,3.7719]
[1755117076448,0.6564,4712.8,4712.7,4.2609]
[1755117076847,0.02,4713.4,4712.7,4.2609]
[1755117077078,0.1064,4713.0,4712.7,4.2609]
[1755117077393,0.1064,4713.0,4712.8,0.9459]
[1755117077611,0.02,4713.4,4712.9,3.33621835]
[1755117077905,0.1264,4713.4,4713.3,10.76455096]
[1755117078054,0.1264,4713.4,4713.3,17.07955096]
[1755117078055,0.02,4713.4,4713.3,17.07955096]
[1755117078255,0.02,4713.4,4713.3,18.02545096]
[1755117078486,0.02,4713.4,4713.3,19.72451237]
[1755117079854,0.02,4713.4,4713.3,18.8188141]
[1755117080054,0.02,4713.4,4713.3,18.8178141]
[1755117082584,0.02,4713.4,4713.3,7.2599]
[1755117082816,0.02,4713.4,4712.6,5.087]
[1755117082984,0.1064,4713.3,4712.7,6.4204]
[1755117083307,0.1064,4713.3,4712.9,3.0]
[1755117083522,0.1064,4713.3,4713.1,3.0]
[1755117083681,0.6564,4713.3,4713.2,3.314]
[1755117084321,0.55,4713.2,4712.7,3.1064]
[1755117084480,0.55,4713.2,4712.9,3.0]
[1755117084680,0.55,4713.2,4713.1,3.0]
[1755117084881,0.55,4713.2,4713.1,3.313]
[1755117085181,0.7099,4713.2,4712.6,5.087]
[1755117085386,0.7099,4713.2,4712.7,3.313]
[1755117085599,0.02,4713.4,4712.9,0.4569]
[1755117085794,0.02,4713.4,4713.0,3.313]
[1755117086193,0.6564,4713.1,4713.0,3.313]
[1755117087579,0.6564,4713.1,4712.6,5.087]
[1755117087580,0.55,4713.0,4712.6,5.087]
[1755117087780,0.55,4713.1,4712.7,3.313]
[1755117088009,0.6564,4712.8,4712.7,3.313]
[1755117093011,0.55,4712.7,4712.6,5.087]
[1755117093199,0.1064,4712.8,4712.6,8.399]
[1755117093406,0.55,4712.7,4712.6,8.399]
[1755117095891,0.55,4712.7,4712.6,9.3086]
[1755117096503,0.55,4712.7,4712.6,8.399]
[1755117097218,0.1064,4712.8,4712.6,8.8419]
[1755117097422,0.6564,4712.8,4712.7,0.02121925]
[1755117097717,0.6564,4712.8,4712.7,0.9096]
[1755117100396,0.1064,4713.2,4712.7,1.84046]
[1755117100611,0.1064,4713.2,4712.8,0.9096]
[1755117100907,0.1264,4713.4,4712.9,0.02121835]
[1755117101113,0.1264,4713.4,4713.0,0.9096]
[1755117101416,0.1264,4713.4,4713.1,3.7539]
[1755117101624,0.1264,4713.4,4713.2,0.9096]
[1755117101822,0.6764,4713.4,4713.3,3.311]
[1755117102018,0.02,4713.4,4713.3,4.64266]
[1755117102426,0.02,4713.4,4713.3,7.74906]
[1755117103691,0.02,4713.4,4713.3,4.43806]
[1755117104017,0.02,4713.4,4713.3,7.74806]
[1755117105627,0.02,4713.4,4713.3,6.31]
[1755117105920,0.02,4713.4,4713.3,7.2196]
[1755117106235,0.02,4713.4,4713.3,6.31]
[1755117106394,0.02,4713.4,4713.3,7.2196]
[1755117106594,0.02,4713.4,4713.3,3.9096]
[1755117106825,0.02,4713.4,4713.3,7.61056]
[1755117109116,0.002,4714.0,4713.3,4.61056]
[1755117109303,0.002,4714.0,4713.9,26.79541458]
[1755117109501,0.002,4714.0,4713.9,30.10441458]
[1755117110043,0.02,4714.4,4714.0,3.0]
[1755117110258,0.02,4715.4,4714.2,3.0]
[1755117110415,0.02,4715.4,4714.3,6.309]
[1755117110416,0.002,4714.4,4714.3,6.309]
[1755117110617,0.02,4715.4,4714.4,3.0]
[1755117110941,0.02,4715.4,4714.1,1.32267141]
[1755117110942,0.02,4715.4,4715.3,26.79541458]
[1755117111144,0.02,4715.4,4715.3,35.19041458]
[1755117111443,0.02,4715.4,4715.3,37.03087458]
[1755117112417,0.9218,4717.6,4715.4,3.0]
[1755117112746,0.4646,4719.3,4716.0,3.0]
[1755117112747,0.9218,4717.3,4716.0,3.0]
[1755117112954,0.15561704,4719.0,4716.1,3.308]
[1755117112955,0.9218,4716.5,4716.1,3.308]
[1755117113110,0.55,4717.2,4716.1,3.308]
[1755117113617,0.55,4717.2,4716.1,3.7509]
[1755117113995,0.55,4717.2,4716.2,3.93080351]
[1755117114143,0.55,4717.2,4716.3,6.308]
[1755117114344,0.55,4717.2,4716.3,6.7509]
[1755117114548,0.55,4717.2,4716.3,3.4429]
[1755117114751,0.55,4717.2,4716.3,6.308]
[1755117115049,0.55,4717.3,4716.3,7.0315929]
[1755117115433,0.4646,4717.1,4716.3,6.307]
[1755117115834,0.55,4717.0,4716.3,3.0]
[1755117116148,0.55,4716.8,4716.3,11.391]
[1755117116533,0.1064,4716.7,4716.3,11.391]
[1755117117717,0.55,4717.3,4716.3,11.391]
[1755117117921,0.1064,4716.9,4716.3,11.391]
[1755117118339,0.1064,4716.9,4716.3,8.084]
[1755117118531,0.1064,4716.9,4716.3,11.39]
[1755117119743,0.55,4716.8,4716.3,11.39]
[1755117120322,0.1064,4716.9,4716.3,13.05461766]
[1755117120740,0.1064,4716.9,4716.3,13.64831766]
[1755117120934,0.1064,4716.9,4716.3,10.34231766]
[1755117121264,0.1064,4716.9,4716.3,12.4422]
[1755117121516,0.022,4716.4,4716.3,12.4422]
[1755117121958,0.022,4716.4,4716.3,11.9549]
[1755117122161,0.022,4716.4,4716.3,11.4964]
[1755117122526,0.022,4716.4,4716.3,8.1904]
[1755117122735,0.022,4716.4,4716.3,11.4954]
[1755117123937,0.022,4716.4,4716.3,11.389]
[1755117125555,0.9339,4716.4,4716.3,11.389]
[1755117125769,1.4839,4716.4,4716.3,11.389]
[1755117125966,1.5903,4716.4,4716.3,8.084]
[1755117126275,1.74933,4716.4,4716.3,8.389]
[1755117126875,1.74933,4716.4,4716.3,8.388]
[1755117127292,1.1379,4716.4,4716.3,8.388]
[1755117128145,1.5903,4716.4,4716.3,8.388]
[1755117130356,0.6784,4716.4,4716.3,8.388]
[1755117132278,0.6784,4716.4,4716.3,8.8465]
[1755117132689,0.6784,4716.4,4716.3,8.388]
[1755117133206,1.5903,4716.4,4716.3,8.388]
[1755117133492,1.1379,4716.4,4716.3,8.388]
[1755117133657,0.6784,4716.4,4716.3,8.388]
[1755117134961,0.6784,4716.4,4716.3,5.084]
[1755117135163,1.5903,4716.4,4716.3,8.387]
[1755117136005,0.6784,4716.4,4716.3,8.387]
[1755117136574,0.6784,4716.4,4716.3,5.084]
[1755117136774,0.6784,4716.4,4716.3,8.387]
[1755117139773,0.6784,4716.4,4716.3,5.084]
[1755117139978,1.5903,4716.4,4716.3,8.386]
[1755117140505,0.6784,4716.4,4716.3,8.386]
[1755117141776,0.6784,4716.4,4716.3,5.084]
[1755117141978,0.6784,4716.4,4716.3,8.386]
[1755117142685,16.20338,4716.4,4716.3,5.084]
[1755117142889,16.40157487,4716.4,4716.3,8.386]
[1755117143208,16.20338,4716.4,4716.3,5.084]
[1755117143419,16.20338,4716.4,4716.3,8.386]
[1755117143420,16.40155282,4716.4,4716.3,8.386]
[1755117143908,16.40155282,4716.4,4715.6,5.083]
[1755117143909,0.55,4716.3,4715.6,5.083]
[1755117144111,0.55,4716.1,4715.7,3.302]
[1755117144283,0.1981391,4716.0,4715.6,5.083]
[1755117144490,15.1564,4715.7,4715.6,5.083]
[1755117144690,15.1564,4715.7,4715.6,8.385]
[1755117145902,15.6159,4715.7,4715.6,8.385]
[1755117146086,15.1564,4715.7,4715.6,8.385]
[1755117146510,15.1564,4715.7,4715.6,8.384]
[1755117146678,16.76323,4715.7,4715.6,8.384]
[1755117147177,17.22273,4715.7,4715.6,8.384]
[1755117147373,17.67513,4715.7,4715.6,8.384]
[1755117147579,17.67513,4715.7,4715.6,5.083]
[1755117147789,17.67513,4715.7,4715.6,8.384]
[1755117148309,17.67513,4715.7,4715.6,5.083]
[1755117148512,17.67513,4715.7,4715.6,8.384]
[1755117148844,17.66143,4715.7,4715.6,8.384]
[1755117150105,16.76323,4715.7,4715.6,8.384]
[1755117150734,17.67053,4715.7,4715.6,5.083]
[1755117151031,17.67053,4715.7,4715.6,8.384]
[1755117152860,17.67053,4715.7,4715.3,0.001]
[1755117152861,0.55,4715.6,4715.3,0.001]
[1755117153033,0.55,4715.4,4715.3,0.001]
[1755117153324,0.6564,4715.4,4715.3,0.001]
[1755117153506,1.5637,4715.4,4715.3,0.001]
[1755117153709,16.0637,4715.4,4715.3,0.001]
[1755117154113,16.0637,4715.4,4715.3,3.302]
[1755117154311,17.67007,4715.4,4715.3,3.302]
[1755117157704,17.23137,4715.4,4715.3,3.302]
[1755117159439,17.67007,4715.4,4715.3,3.302]
[1755117159618,17.67007,4715.4,4715.3,3.301]
[1755117161826,17.23137,4715.4,4715.3,3.301]
[1755117162721,16.76277,4715.4,4715.3,3.301]
[1755117165348,16.76277,4715.4,4715.3,3.7697]
[1755117166413,16.76277,4715.4,4715.3,3.301]
[1755117167260,16.76277,4715.4,4715.3,3.3]
[1755117167416,17.67007,4715.4,4715.3,3.3]
[1755117168642,17.23137,4715.4,4715.3,3.3]
[1755117168955,16.76277,4715.4,4715.3,3.3]
[1755117169914,16.76277,4715.4,4715.3,0.4697]
[1755117170114,16.76277,4715.4,4715.3,3.299]
[1755117171438,16.76277,4715.4,4714.8,5.085]
[1755117171627,0.55,4715.2,4714.9,3.298]
[1755117172022,15.1564,4715.0,4714.9,3.298]
[1755117173756,0.55,4714.9,4714.8,5.085]
[1755117173928,0.55,4714.9,4714.8,8.382]
[1755117174242,1.4573,4714.9,4714.8,3.297]
[1755117174427,17.40754182,4714.9,4714.4,0.001]
[1755117174625,0.6564,4714.5,4714.4,0.001]
[1755117175628,0.6564,4714.5,4714.4,3.298]
[1755117175827,15.1564,4714.5,4714.4,3.298]
[1755117177058,15.1564,4714.5,4714.4,0.001]
[1755117177226,0.55,4714.4,4714.0,5.085]
[1755117177428,0.55,4714.4,4714.3,3.298]
[1755117177625,0.575,4714.5,4714.3,3.298]
[1755117177856,15.05,4714.4,4714.3,3.298]
[1755117182654,14.5,4714.4,4714.3,4.1931]
[1755117182855,15.74314023,4714.4,4714.3,0.001]
[1755117183056,15.74314023,4714.4,4714.3,3.297]
[1755117183439,15.74314023,4714.4,4714.0,5.085]
[1755117183440,0.55,4714.3,4714.0,5.085]
[1755117184172,15.05,4714.1,4714.0,5.085]
[1755117184343,16.64412755,4714.1,4714.0,5.5182]
[1755117184548,16.64412755,4714.1,4714.0,8.8142]
[1755117184750,16.64412755,4714.1,4714.0,8.381]
[1755117185576,0.55,4714.0,4713.9,0.001]
[1755117185756,0.55,4714.0,4713.9,3.297]
[1755117185952,0.55,4714.3,4713.9,3.296]
[1755117186162,15.05,4714.0,4713.9,3.296]
[1755117188145,15.05,4714.0,4713.9,0.001]
[1755117188345,15.05,4714.0,4713.9,3.296]
[1755117188781,0.55,4713.9,4713.8,0.001]
[1755117188953,2.11,4713.9,4713.8,0.001]
[1755117189154,2.11,4713.9,4713.8,3.296]
[1755117189361,16.8079744,4713.9,4713.8,3.296]
[1755117189563,16.61,4713.9,4713.8,3.296]
[1755117189881,15.05,4713.9,4713.8,4.1911]
[1755117190246,14.5,4713.9,4713.8,4.1911]
[1755117190448,15.05,4713.9,4713.8,4.1911]
[1755117190647,14.5,4713.9,4713.8,4.1911]
[1755117190849,15.05,4713.9,4713.8,4.1911]
[1755117191475,0.002,4716.2,4713.8,16.95360752]
[1755117191680,0.002,4716.2,4714.4,10.75890684]
[1755117191977,14.5,4715.5,4714.5,3.295]
[1755117192160,0.55,4715.4,4714.6,4.1891]
[1755117192688,0.002,4716.2,4715.1,10.75890684]
[1755117192846,14.5,4716.1,4715.2,3.294]
[1755117193047,14.5,4716.1,4715.2,4.1891]
[1755117193249,14.5,4716.1,4715.3,0.8951]
[1755117193674,14.5,4716.1,4715.4,0.8951]
[1755117193877,0.55,4716.0,4715.5,3.294]
[1755117194058,0.55,4716.0,4715.6,5.086]
[1755117194266,0.55,4716.0,4715.6,8.38]
[1755117194595,2.1636,4715.7,4715.6,8.38]
[1755117195100,2.1636,4715.7,4715.6,8.8132]
[1755117195382,0.6584,4715.7,4715.6,8.38]
[1755117195581,15.1584,4715.7,4715.6,8.38]
[1755117196792,15.1584,4715.7,4715.6,8.379]
[1755117197280,0.55,4715.6,4714.7,5.086]
[1755117197458,0.55,4714.9,4714.8,3.293]
[1755117197848,15.05,4714.9,4714.8,3.293]
[1755117198784,15.85046515,4714.9,4714.8,3.293]
[1755117198956,15.85046515,4714.9,4714.7,5.086]
[1755117199151,1.35046515,4714.9,4714.8,3.293]
[1755117199364,0.55,4714.9,4714.8,3.293]
[1755117199566,15.05,4714.9,4714.8,3.293]
[1755117202488,15.05,4714.9,4714.7,5.086]
[1755117202688,15.05,4714.9,4714.8,3.292]
[1755117203688,14.5,4714.9,4714.8,4.1871]
[1755117203989,14.6064,4714.9,4714.8,4.1871]
[1755117204158,15.1564,4714.9,4714.8,4.1871]
[1755117205288,0.55,4714.8,4714.7,5.086]
[1755117205453,0.55,4714.8,4714.7,8.378]
[1755117205880,0.55,4714.8,4713.9,0.4332]
[1755117206079,0.6564,4714.0,4713.9,0.4332]
[1755117206676,15.1564,4714.0,4713.9,0.4332]
[1755117207079,15.1564,4714.0,4713.9,3.7252]
[1755117207584,0.55,4713.9,4713.8,5.087]
[1755117207788,0.55,4713.9,4713.8,8.378]
[1755117207991,0.1064,4714.0,4713.8,8.8638]
[1755117208290,0.1064,4714.0,4713.9,0.9448]
[1755117208788,15.1564,4714.0,4713.9,0.9448]
[1755117208994,0.55,4713.9,4713.8,8.378]
[1755117209360,0.1064,4714.0,4713.8,8.378]
[1755117209561,15.05,4713.9,4713.8,8.378]
[1755117211664,15.05,4713.9,4713.8,5.087]
[1755117211879,15.05,4713.9,4713.8,8.378]
[1755117212079,16.61238,4713.9,4713.8,8.378]
[1755117216771,16.61238,4713.9,4713.8,8.377]
[1755117216974,0.55,4713.8,4713.3,0.001]
[1755117217175,0.6564,4713.4,4713.3,0.001]
[1755117217666,15.1564,4713.4,4713.3,0.001]
[1755117218088,15.82560615,4713.4,4713.3,0.001]
[1755117218286,15.82560615,4713.4,4713.3,3.291]
[1755117218500,15.82560615,4713.4,4713.3,0.001]
[1755117218674,0.55,4713.3,4713.2,5.086]
[1755117218872,0.55,4713.3,4713.2,8.376]
[1755117219130,0.55,4713.3,4712.8,0.001]
[1755117219131,0.55,4713.2,4712.8,0.001]
[1755117219299,1.0234,4713.2,4712.8,0.001]
[1755117219466,1.0234,4713.2,4713.1,3.31]
[1755117219867,1.0234,4713.2,4712.8,0.001]
[1755117220072,0.55,4713.0,4712.0,5.087]
[1755117220278,0.55,4712.8,4712.0,5.087]
[1755117220699,0.6564,4712.2,4712.0,5.087]
[1755117221070,0.6564,4712.2,4712.1,3.31]
[1755117221478,0.6564,4712.2,4712.1,4.2548]
[1755117222190,0.19763371,4714.8,4712.1,4.2538]
[1755117222388,0.1064,4712.2,4712.1,3.7948]
[1755117223020,0.1064,4712.2,4712.1,4.2538]
[1755117224397,0.1064,4712.2,4712.1,4.2548]
[1755117225104,0.1064,4712.2,4712.1,4.2538]
[1755117225515,0.1064,4712.2,4712.1,0.9648]
[1755117225906,0.6564,4712.2,4712.1,0.02]
[1755117226106,1.1298,4712.2,4712.1,0.02]
[1755117226310,1.28952,4712.2,4712.1,3.309]
[1755117226602,0.55,4712.1,4712.0,5.087]
[1755117226901,0.55,4712.1,4712.0,8.376]
[1755117228430,0.26612,4712.2,4712.0,8.376]
[1755117228608,0.1064,4712.2,4712.0,8.376]
[1755117228804,0.55,4712.1,4712.0,8.376]
[1755117229425,0.55,4712.1,4712.0,8.835]
[1755117229630,0.55,4712.1,4712.0,8.376]
[1755117229830,0.55,4712.1,4712.0,8.835]
[1755117230031,0.55,4712.1,4712.0,5.087]
[1755117230238,0.55,4712.1,4712.0,8.376]
[1755117231143,0.55,4712.1,4712.0,5.087]
[1755117231324,0.55,4712.1,4712.0,8.376]
[1755117232512,0.66238,4712.1,4712.0,8.376]